bitfinex-derivatives/quotes_BTCF0:USTF0_20241009
["timestamp","ask_amount","ask_price","bid_price","bid_amount"]
[1728434373022,0.16947614,62065.0,62064.0,0.270598]
[1728434373219,0.22728191,62065.0,62064.0,0.270598]
[1728434373415,0.22728191,62065.0,62063.0,0.0054167]
[1728434373416,0.080598,62064.0,62063.0,0.0054167]
[1728434373617,0.080598,62064.0,62049.0,0.3608]
[1728434373618,0.30397614,62064.0,62056.0,0.3608]
[1728434373816,0.080605,62059.0,62056.0,0.441408]
[1728434374024,0.04947614,62058.0,62056.0,0.441408]
[1728434374326,0.080605,62059.0,62056.0,0.631408]
[1728434374818,0.1345,62064.0,62056.0,0.631408]
[1728434374819,0.215099,62064.0,62061.0,0.080602]
[1728434375016,0.080599,62063.0,62061.0,0.080602]
[1728434375225,0.200599,62063.0,62061.0,0.080602]
[1728434375912,0.12,62063.0,62062.0,0.0806]
[1728434376922,0.0806,62062.0,62061.0,0.01]
[1728434377226,0.2006,62062.0,62061.0,0.01]
[1728434377631,0.2006,62062.0,62061.0,0.004]
[1728434378226,0.2006,62062.0,62061.0,0.084602]
[1728434378420,0.12,62062.0,62061.0,0.084602]
[1728434378624,0.121,62062.0,62061.0,0.447402]
[1728434378926,0.001,62062.0,62061.0,0.447402]
[1728434379318,0.002,62062.0,62061.0,0.451402]
[1728434379516,0.002,62062.0,62061.0,0.934802]
[1728434379917,0.069,62077.0,62072.0,0.080587]
[1728434380218,0.069,62078.0,62072.0,0.080587]
[1728434380219,0.080578,62080.0,62078.0,0.080579]
[1728434380417,0.200578,62080.0,62078.0,0.08058]
[1728434380920,0.200578,62080.0,62077.0,0.3608]
[1728434381231,0.200578,62080.0,62076.0,0.19]
[1728434381232,0.080579,62079.0,62076.0,0.19]
[1728434381430,0.200579,62079.0,62076.0,0.19]
[1728434383017,0.200579,62079.0,62077.0,0.080581]
[1728434383223,0.211579,62079.0,62078.0,0.3608]
[1728434383615,0.08058,62078.0,62077.0,0.001]
[1728434383822,0.080581,62077.0,62076.0,0.001]
[1728434384022,0.200581,62077.0,62076.0,0.002]
[1728434385418,0.200581,62077.0,62076.0,0.001]
[1728434386122,0.211581,62077.0,62076.0,0.001]
[1728434386522,0.080584,62075.0,62072.0,0.080587]
[1728434386834,0.1,62075.0,62072.0,0.080587]
[1728434387128,0.080586,62073.0,62072.0,0.080587]
[1728434387324,0.200586,62073.0,62072.0,0.080587]
[1728434387731,0.12,62073.0,62069.0,0.19]
[1728434387934,0.080591,62069.0,62068.0,0.080592]
[1728434388133,0.200591,62069.0,62068.0,0.080592]
[1728434388933,0.080593,62068.0,62065.0,0.00241681]
[1728434389131,0.200593,62068.0,62065.0,0.00241681]
[1728434389529,0.200593,62068.0,62065.0,0.08301281]
[1728434389727,0.1878856,62067.0,62065.0,0.08301281]
[1728434389929,0.1072916,62066.0,62065.0,0.08301281]
[1728434390138,0.2272916,62066.0,62065.0,0.08301281]
[1728434390325,0.2272916,62066.0,62065.0,0.08401281]
[1728434390728,0.2272916,62066.0,62065.0,0.08601281]
[1728434391429,0.2272916,62066.0,62065.0,0.08401281]
[1728434391628,0.2272916,62066.0,62065.0,0.08601281]
[1728434392144,0.1072916,62066.0,62065.0,0.44681281]
[1728434392633,0.04947751,62066.0,62065.0,0.44681281]
[1728434394231,0.04947751,62066.0,62065.0,0.51831281]
[1728434394426,0.1072916,62066.0,62065.0,0.51831281]
[1728434394632,0.04947751,62066.0,62065.0,0.51831281]
[1728434397641,0.080585,62074.0,62071.0,0.080588]
[1728434397834,0.080585,62074.0,62071.0,0.270588]
[1728434397835,0.180585,62074.0,62071.0,0.270588]
[1728434399743,0.190585,62074.0,62071.0,0.271588]
[1728434400349,0.080587,62072.0,62071.0,0.271588]
[1728434400539,0.180587,62072.0,62071.0,0.271588]
[1728434402653,0.186587,62072.0,62071.0,0.271588]
[1728434402848,0.106,62072.0,62071.0,0.271588]
[1728434403069,0.11,62072.0,62071.0,0.271588]
[1728434403864,0.11,62072.0,62071.0,0.33593911]
[1728434404054,0.01,62072.0,62071.0,0.271588]
[1728434404260,0.0038,62083.0,62071.0,0.8351711]
[1728434404453,0.11,62082.0,62080.0,0.3608]
[1728434404756,0.11,62082.0,62081.0,0.080576]
[1728434404956,0.36690847,62082.0,62081.0,0.080576]
[1728434405158,0.42470683,62082.0,62081.0,0.080576]
[1728434405862,0.29783642,62082.0,62081.0,0.080576]
[1728434406255,0.29983642,62082.0,62081.0,0.080576]
[1728434406759,0.21926242,62082.0,62081.0,0.080576]
[1728434406962,0.21826242,62082.0,62081.0,0.080576]
[1728434407154,0.21926242,62082.0,62081.0,0.080576]
[1728434407353,0.080577,62080.0,62078.0,0.270579]
[1728434407551,0.10726242,62079.0,62078.0,0.27058]
[1728434408065,0.04946406,62079.0,62078.0,0.27058]
[1728434408362,0.04946519,62079.0,62078.0,0.27058]
[1728434408964,0.04946519,62079.0,62078.0,0.27158]
[1728434409467,0.04946519,62079.0,62078.0,0.27258]
[1728434409669,0.06246519,62079.0,62078.0,0.27258]
[1728434410258,0.07346519,62079.0,62078.0,0.27258]
[1728434410460,0.07346519,62079.0,62078.0,0.75582]
[1728434410659,0.05779836,62079.0,62078.0,0.75582]
[1728434410864,0.0725,62094.0,62078.0,0.75582]
[1728434411160,0.0725,62094.0,62089.0,0.270565]
[1728434411161,0.0763,62094.0,62089.0,0.270565]
[1728434411363,0.02872498,62091.0,62089.0,0.270565]
[1728434411764,0.0725,62094.0,62089.0,0.270565]
[1728434412166,0.0074167,62090.0,62089.0,0.270565]
[1728434412556,0.080566,62089.0,62086.0,0.5508]
[1728434412760,0.0024167,62090.0,62089.0,0.005]
[1728434413064,0.2079807,62090.0,62089.0,0.005]
[1728434413771,0.2029807,62090.0,62089.0,0.005]
[1728434415669,0.2029807,62090.0,62089.0,0.009]
[1728434417161,0.5637807,62090.0,62089.0,0.009]
[1728434419071,0.2029807,62090.0,62089.0,0.009]
[1728434419269,0.2029807,62090.0,62089.0,0.089565]
[1728434419572,0.1224167,62090.0,62089.0,0.089565]
[1728434419771,0.1718762,62090.0,62089.0,0.089565]
[1728434420072,0.22966924,62090.0,62089.0,0.089565]
[1728434422869,0.22966924,62090.0,62089.0,0.009]
[1728434423059,0.67103324,62090.0,62089.0,0.009]
[1728434423766,0.67103803,62090.0,62089.0,0.009]
[1728434427672,0.5637807,62090.0,62089.0,0.00810001]
[1728434431872,0.61324724,62090.0,62089.0,0.00810001]
[1728434434781,0.5637807,62090.0,62089.0,0.00810001]
[1728434436074,0.080581,62077.0,62076.0,0.080581]
[1728434436276,0.31,62077.0,62064.0,0.04820126]
[1728434436579,0.31,62077.0,62068.0,0.080592]
[1728434436580,0.3608,62069.0,62068.0,0.080592]
[1728434436786,0.4708,62069.0,62068.0,0.080592]
[1728434436976,0.4708,62069.0,62058.0,0.19]
[1728434437178,0.4708,62069.0,62062.0,0.080599]
[1728434437179,0.080595,62066.0,62062.0,0.080599]
[1728434437379,0.190595,62066.0,62065.0,0.00441681]
[1728434438694,0.190595,62066.0,62065.0,0.00741681]
[1728434438887,0.190595,62066.0,62065.0,0.003]
[1728434439082,0.080603,62060.0,62055.0,0.00241749]
[1728434439274,0.080608,62056.0,62055.0,0.00241749]
[1728434439474,0.080618,62049.0,62047.0,0.08062]
[1728434439675,0.080618,62049.0,62042.0,0.3608]
[1728434439676,0.3608,62048.0,62042.0,0.080625]
[1728434439980,0.080622,62046.0,62045.0,0.19]
[1728434440291,0.190622,62046.0,62045.0,0.19]
[1728434440883,0.190622,62046.0,62045.0,0.270622]
[1728434440884,0.11,62046.0,62045.0,0.270622]
[1728434441081,0.0038,62057.0,62056.0,0.080608]
[1728434441380,0.3628,62060.0,62059.0,0.080604]
[1728434441686,0.3608,62060.0,62059.0,0.080604]
[1728434442683,0.3608,62060.0,62051.0,0.0767]
[1728434442684,0.080608,62057.0,62054.0,0.08061]
[1728434442890,0.3608,62060.0,62056.0,0.19]
[1728434443186,0.560403,62060.0,62059.0,0.001]
[1728434443576,0.4798,62060.0,62059.0,0.001]
[1728434444181,0.4838,62060.0,62059.0,0.001]
[1728434444587,0.754403,62060.0,62059.0,0.001]
[1728434444781,0.080613,62052.0,62047.0,0.3608]
[1728434444984,0.190613,62052.0,62047.0,0.3608]
[1728434445181,0.080615,62051.0,62049.0,0.19]
[1728434446488,0.180615,62051.0,62049.0,0.192]
[1728434447979,0.180615,62051.0,62049.0,0.274616]
[1728434449887,0.14027753,62051.0,62050.0,0.04820126]
[1728434450484,0.14027753,62051.0,62049.0,0.274616]
[1728434450787,0.14027753,62051.0,62049.0,0.272616]
[1728434450988,0.1,62051.0,62050.0,0.080616]
[1728434451293,0.009,62051.0,62050.0,0.080616]
[1728434451493,0.0038,62060.0,62059.0,0.080604]
[1728434451695,0.0038,62060.0,62059.0,0.270604]
[1728434451696,0.11,62060.0,62059.0,0.270604]
[1728434452592,0.00241742,62065.0,62064.0,0.080598]
[1728434452793,0.12241742,62065.0,62064.0,0.270598]
[1728434453387,0.12241742,62065.0,62064.0,0.31867346]
[1728434453897,0.00241742,62065.0,62064.0,0.631398]
[1728434454101,0.00241742,62065.0,62064.0,0.69549861]
[1728434454292,0.01141742,62065.0,62064.0,1.17985861]
[1728434454488,0.01141742,62065.0,62064.0,1.77985861]
[1728434454489,0.009,62065.0,62064.0,1.77985861]
[1728434454685,0.0038,62075.0,62074.0,0.080585]
[1728434454893,0.080579,62079.0,62073.0,0.04809916]
[1728434455087,0.0038,62086.0,62078.0,0.5508]
[1728434455298,0.4377,62087.0,62086.0,0.19]
[1728434455299,0.441368,62087.0,62086.0,0.19]
[1728434455594,0.561368,62087.0,62086.0,0.19]
[1728434455792,0.4808,62087.0,62086.0,0.270569]
[1728434456696,0.3608,62087.0,62086.0,0.270569]
[1728434456900,0.3608,62087.0,62086.0,0.31866816]
[1728434457197,0.3618,62087.0,62086.0,0.270569]
[1728434457601,0.3608,62087.0,62086.0,0.278569]
[1728434457804,0.3618,62087.0,62086.0,0.33264268]
[1728434458793,0.3618,62087.0,62086.0,0.284569]
[1728434458794,0.001,62087.0,62086.0,0.284569]
[1728434460804,0.001,62087.0,62086.0,1.728569]
[1728434461193,0.001,62087.0,62086.0,0.455369]
[1728434461905,0.311568,62087.0,62086.0,0.014]
[1728434462199,0.34060121,62087.0,62086.0,0.014]
[1728434464809,0.44787324,62087.0,62086.0,0.014]
[1728434466613,0.080582,62077.0,62073.0,0.080586]
[1728434466802,0.080582,62077.0,62065.0,0.19]
[1728434466803,0.10727203,62076.0,62065.0,0.19]
[1728434467007,0.10727203,62076.0,62068.0,0.080592]
[1728434467008,0.441388,62072.0,62068.0,0.080592]
[1728434467213,0.10727203,62071.0,62068.0,0.080592]
[1728434467409,0.13005849,62070.0,62068.0,0.080592]
[1728434467616,0.10727203,62069.0,62065.0,0.00821178]
[1728434467809,0.10727203,62068.0,62067.0,0.080593]
[1728434468003,0.04946849,62068.0,62067.0,0.080593]
[1728434468411,0.13839254,62071.0,62067.0,0.080593]
[1728434468605,0.25839254,62071.0,62067.0,0.080593]
[1728434468806,0.10727915,62070.0,62067.0,0.080593]
[1728434469613,0.04947561,62069.0,62067.0,0.080593]
[1728434469806,0.04947561,62069.0,62068.0,0.080593]
[1728434471107,0.05147561,62069.0,62068.0,0.080593]
[1728434471308,0.002,62069.0,62068.0,0.080593]
[1728434471913,0.001,62069.0,62067.0,0.080594]
[1728434472110,0.111,62069.0,62068.0,0.080593]
[1728434472916,0.002,62069.0,62068.0,0.080593]
[1728434473316,0.002,62069.0,62068.0,0.563913]
[1728434474724,0.002,62069.0,62068.0,1.524713]
[1728434475514,0.002,62069.0,62068.0,1.554713]
[1728434476418,0.0738,62081.0,62077.0,0.080581]
[1728434476621,0.1,62078.0,62077.0,0.31864216]
[1728434477216,0.1,62078.0,62077.0,0.31864112]
[1728434477424,0.1,62078.0,62077.0,0.3186586]
[1728434477625,0.11,62078.0,62077.0,0.31965814]
[1728434478317,0.11,62078.0,62077.0,0.271581]
[1728434479226,0.113,62078.0,62077.0,0.32067992]
[1728434479415,0.113,62078.0,62077.0,0.272581]
[1728434479611,0.113,62078.0,62077.0,0.33666255]
[1728434480422,0.113,62078.0,62077.0,0.272581]
[1728434480623,0.16246821,62078.0,62077.0,0.272581]
[1728434480828,0.16246821,62078.0,62077.0,0.002]
[1728434480829,0.24304821,62078.0,62077.0,0.002]
[1728434481025,0.30085665,62078.0,62077.0,0.002]
[1728434481215,0.30085665,62078.0,62066.0,0.080595]
[1728434481216,0.08059,62071.0,62066.0,0.080595]
[1728434481420,0.08059,62071.0,62063.0,0.5508]
[1728434481421,0.13005821,62070.0,62069.0,0.080591]
[1728434481616,0.24005821,62070.0,62069.0,0.080591]
[1728434481822,0.31935821,62070.0,62069.0,0.080591]
[1728434482219,0.37716893,62070.0,62069.0,0.080591]
[1728434483034,0.080594,62067.0,62066.0,0.001]
[1728434483242,0.080594,62067.0,62066.0,0.002]
[1728434483243,0.13006221,62067.0,62066.0,0.002]
[1728434483534,0.10727872,62067.0,62066.0,0.271595]
[1728434483722,0.10727872,62067.0,62066.0,0.081595]
[1728434483928,0.13006221,62067.0,62063.0,0.38977482]
[1728434484127,0.04946821,62066.0,62063.0,0.38977482]
[1728434484329,0.10728072,62066.0,62063.0,0.47037282]
[1728434484523,0.04946821,62065.0,62063.0,0.38977482]
[1728434485230,0.04946821,62065.0,62064.0,0.080598]
[1728434486128,0.107281,62065.0,62064.0,0.080598]
[1728434486318,0.107281,62065.0,62062.0,0.19]
[1728434486319,0.110281,62065.0,62061.0,0.03241679]
[1728434486523,0.107281,62064.0,62061.0,0.03241679]
[1728434486725,0.107281,62064.0,62062.0,0.0806]
[1728434486726,0.107281,62063.0,62062.0,0.0806]
[1728434487031,0.30788,62063.0,62061.0,0.03241679]
[1728434487227,0.187881,62062.0,62061.0,0.03241679]
[1728434487626,0.1806,62062.0,62061.0,0.00241679]
[1728434489139,0.1,62062.0,62061.0,0.00241679]
[1728434489337,0.161289,62071.0,62068.0,0.080592]
[1728434489525,0.1793,62070.0,62069.0,0.19]
[1728434489835,0.1793,62070.0,62069.0,0.25427828]
[1728434490036,0.1793,62070.0,62069.0,0.19]
[1728434490236,0.25989,62070.0,62069.0,0.25427741]
[1728434490836,0.26389,62070.0,62069.0,0.191]
[1728434491131,0.1833,62070.0,62069.0,0.272591]
[1728434491332,0.012,62070.0,62069.0,0.272591]
[1728434491545,0.012,62070.0,62069.0,0.39542697]
[1728434491833,0.012,62070.0,62069.0,0.49174269]
[1728434492035,0.0038,62079.0,62069.0,1.47874697]
[1728434492337,0.0038,62083.0,62075.0,0.17705706]
[1728434492536,0.0794,62086.0,62085.0,0.08057]
[1728434492537,0.0038,62086.0,62085.0,0.08057]
[1728434492836,0.0038,62096.0,62085.0,0.58006463]
[1728434493035,0.080565,62090.0,62087.0,0.080568]
[1728434493349,0.3608,62091.0,62090.0,0.080564]
[1728434494731,0.32048814,62091.0,62090.0,0.084564]
[1728434495737,0.42773593,62091.0,62090.0,0.084564]
[1728434495934,0.42773593,62091.0,62090.0,0.087564]
[1728434496436,0.10724779,62091.0,62090.0,0.087564]
[1728434496941,0.04945731,62091.0,62090.0,0.087564]
[1728434497131,0.04945731,62097.0,62096.0,0.080556]
[1728434497328,0.04945137,62097.0,62096.0,0.270556]
[1728434499038,0.05245137,62097.0,62096.0,0.270556]
[1728434499740,0.04945137,62097.0,62096.0,0.270556]
[1728434499938,0.04945137,62097.0,62096.0,0.001]
[1728434500145,0.13000637,62097.0,62096.0,0.001]
[1728434500729,0.25631263,62097.0,62096.0,0.001]
[1728434500929,0.305764,62097.0,62096.0,0.001]
[1728434501135,0.13000637,62097.0,62096.0,0.001]
[1728434501544,0.23000637,62097.0,62096.0,0.001]
[1728434502248,0.28779422,62097.0,62096.0,0.001]
[1728434502431,0.23000637,62097.0,62096.0,0.001]
[1728434502835,0.180555,62097.0,62096.0,0.001]
[1728434503938,0.180555,62097.0,62077.0,0.1938]
[1728434503939,0.080572,62084.0,62077.0,0.1938]
[1728434504143,0.080572,62084.0,62077.0,0.19]
[1728434504545,0.180572,62084.0,62081.0,0.270575]
[1728434504848,0.1,62084.0,62083.0,0.08298879]
[1728434505035,0.156967,62088.0,62084.0,0.080571]
[1728434505241,0.266967,62088.0,62085.0,0.19]
[1728434506241,0.268967,62088.0,62085.0,0.19]
[1728434506436,0.080569,62087.0,62083.0,0.00241579]
[1728434506642,0.441372,62084.0,62083.0,0.00341579]
[1728434506841,0.561372,62084.0,62083.0,0.00341579]
[1728434507248,0.561372,62084.0,62083.0,0.00241579]
[1728434507851,0.561372,62084.0,62083.0,0.00341579]
[1728434508844,0.561372,62084.0,62083.0,0.00441579]
[1728434509042,0.568372,62084.0,62083.0,0.00441579]
[1728434509844,0.61783878,62084.0,62083.0,0.00441579]
[1728434511246,0.61783878,62084.0,62077.0,0.11058]
[1728434511247,0.59507003,62084.0,62077.0,0.03]
[1728434511453,0.080579,62079.0,62077.0,0.03]
[1728434511651,0.04946678,62078.0,62077.0,0.03]
[1728434512447,0.04946678,62078.0,62077.0,0.110581]
[1728434512947,0.04946657,62078.0,62077.0,0.110581]
[1728434514151,0.14946657,62078.0,62077.0,0.110581]
[1728434514447,0.15446657,62078.0,62077.0,0.110581]
[1728434515351,0.23504657,62078.0,62077.0,0.03]
[1728434515550,0.29285086,62078.0,62077.0,0.03]
[1728434515846,0.41077311,62078.0,62077.0,0.03]
[1728434516055,0.23504657,62078.0,62077.0,0.03]
[1728434516347,0.29285145,62078.0,62077.0,0.03]
[1728434517447,0.080582,62077.0,62073.0,0.080586]
[1728434517750,0.10727145,62076.0,62073.0,0.080586]
[1728434517953,0.080582,62077.0,62074.0,0.06422701]
[1728434518255,0.080582,62077.0,62075.0,0.06422701]
[1728434518551,0.080582,62077.0,62075.0,0.14480901]
[1728434518745,0.080582,62076.0,62075.0,0.06422701]
[1728434519053,0.080584,62075.0,62073.0,0.080585]
[1728434520044,0.080584,62075.0,62073.0,0.16096006]
[1728434520249,0.080584,62075.0,62073.0,0.080585]
[1728434520649,0.180584,62075.0,62073.0,0.16096006]
[1728434521359,0.181584,62075.0,62073.0,0.16096006]
[1728434521848,0.181584,62075.0,62074.0,0.20319204]
[1728434522046,0.181584,62075.0,62074.0,0.080585]
[1728434523250,0.080585,62074.0,62073.0,0.08037506]
[1728434523451,0.080587,62072.0,62071.0,0.08037506]
[1728434523658,0.080589,62071.0,62070.0,0.08037506]
[1728434523854,0.080589,62071.0,62070.0,0.23319877]
[1728434524157,0.080589,62071.0,62070.0,0.11037506]
[1728434524454,0.192,62075.0,62069.0,0.08037506]
[1728434524656,0.080594,62067.0,62066.0,0.06426072]
[1728434524952,0.080598,62064.0,62062.0,0.08037506]
[1728434525157,0.11,62064.0,62061.0,0.52202037]
[1728434525357,0.0806,62062.0,62061.0,0.52202037]
[1728434525551,0.0806,62062.0,62061.0,0.52200555]
[1728434525755,0.0806,62062.0,62061.0,0.41140455]
[1728434525951,0.0806,62062.0,62061.0,0.36321679]
[1728434526952,0.12,62062.0,62061.0,0.63381879]
[1728434527153,0.08059,62070.0,62061.0,0.55321679]
[1728434527360,0.19059,62070.0,62069.0,0.193]
[1728434528159,0.11,62070.0,62069.0,0.270591]
[1728434528570,0.1606,62076.0,62069.0,0.19]
[1728434528766,0.341183,62076.0,62074.0,0.19]
[1728434529460,0.341183,62076.0,62074.0,0.270585]
[1728434531158,0.080583,62075.0,62074.0,0.270585]
[1728434531358,0.200583,62075.0,62074.0,0.270585]
[1728434531554,0.12,62075.0,62069.0,0.23817002]
[1728434531759,0.080589,62071.0,62070.0,0.08059]
[1728434531962,0.200589,62071.0,62070.0,0.08059]
[1728434532561,0.12,62071.0,62069.0,0.04817002]
[1728434532863,0.12,62071.0,62067.0,0.080594]
[1728434532864,0.18787624,62070.0,62067.0,0.080594]
[1728434533064,0.10728624,62069.0,62068.0,0.080593]
[1728434534270,0.0578112,62069.0,62068.0,0.080593]
[1728434534465,0.10728664,62069.0,62068.0,0.080593]
[1728434534865,0.17613228,62069.0,62068.0,0.080593]
[1728434535168,0.10728664,62069.0,62068.0,0.080593]
[1728434535376,0.19387764,62069.0,62068.0,0.081593]
[1728434535557,0.31387764,62069.0,62068.0,0.001]
[1728434535965,0.49001462,62069.0,62068.0,0.081593]
[1728434536160,0.17547544,62069.0,62068.0,0.082593]
[1728434536361,0.11328794,62069.0,62068.0,0.082593]
[1728434536769,0.05547544,62069.0,62068.0,0.082593]
[1728434536968,0.006,62069.0,62068.0,0.082593]
[1728434537174,0.05547544,62069.0,62068.0,0.272593]
[1728434537364,0.11328794,62069.0,62068.0,0.272593]
[1728434537563,0.0638125,62069.0,62068.0,0.272593]
[1728434537759,0.05547127,62069.0,62068.0,0.272593]
[1728434538066,0.13606227,62069.0,62068.0,0.002]
[1728434538272,0.59686227,62069.0,62068.0,0.002]
[1728434538573,0.48387477,62069.0,62068.0,0.002]
[1728434538966,0.84467477,62069.0,62068.0,0.002]
[1728434539964,0.737391,62069.0,62068.0,0.002]
[1728434540963,0.376591,62069.0,62068.0,0.002]
[1728434541163,0.737391,62069.0,62068.0,0.002]
[1728434541679,0.76587087,62069.0,62068.0,0.002]
[1728434542173,0.57587087,62069.0,62068.0,0.002]
[1728434544177,1.65919087,62069.0,62068.0,0.002]
[1728434547272,0.68527987,62069.0,62067.0,0.04827445]
[1728434547487,0.75366,62068.0,62048.0,0.0038]
[1728434547669,0.080609,62055.0,62047.0,0.080619]
[1728434547972,0.11896392,62054.0,62047.0,0.080619]
[1728434548178,0.3608,62051.0,62047.0,0.080619]
[1728434548372,0.11,62051.0,62047.0,0.080619]
[1728434548580,0.080621,62046.0,62045.0,0.441422]
[1728434548770,0.190621,62046.0,62045.0,0.441422]
[1728434548966,0.11,62046.0,62045.0,0.441422]
[1728434549675,0.02885202,62052.0,62045.0,0.3608]
[1728434549986,0.45384001,62061.0,62051.0,0.270615]
[1728434549987,0.24447547,62061.0,62051.0,0.270615]
[1728434550186,0.190602,62061.0,62060.0,0.270603]
[1728434550671,0.11,62061.0,62060.0,0.270603]
[1728434550876,0.11,62061.0,62060.0,0.19]
[1728434551180,0.080604,62060.0,62058.0,0.080605]
[1728434551875,0.080608,62056.0,62053.0,0.080612]
[1728434552072,0.08061,62055.0,62053.0,0.080612]
[1728434552267,0.12,62055.0,62049.0,0.19]
[1728434552482,0.12,62055.0,62045.0,0.6312]
[1728434552673,0.08062,62047.0,62045.0,0.6312]
[1728434552872,0.08062,62047.0,62046.0,0.080621]
[1728434553069,0.080617,62050.0,62048.0,0.080618]
[1728434553274,0.080617,62050.0,62049.0,0.270617]
[1728434553275,0.180617,62050.0,62049.0,0.270617]
[1728434553481,0.180617,62050.0,62049.0,0.273617]
[1728434553977,0.180617,62050.0,62049.0,0.270617]
[1728434554174,0.1,62050.0,62049.0,0.270617]
[1728434554780,0.1,62050.0,62049.0,0.273617]
[1728434555081,0.1,62050.0,62049.0,0.3964783]
[1728434555481,0.1,62050.0,62049.0,0.273617]
[1728434556083,0.180616,62050.0,62049.0,0.273617]
[1728434556276,0.180616,62050.0,62049.0,0.193]
[1728434556779,0.180616,62050.0,62049.0,0.196]
[1728434556976,0.180616,62050.0,62049.0,0.006]
[1728434563896,0.363,62058.0,62057.0,0.080607]
[1728434564093,0.3608,62058.0,62057.0,0.270607]
[1728434565788,0.3608,62058.0,62054.0,0.0831]
[1728434565789,0.080609,62055.0,62054.0,0.0831]
[1728434566995,0.082609,62055.0,62054.0,0.0831]
[1728434567587,0.085609,62055.0,62054.0,0.0831]
[1728434570083,0.085609,62055.0,62054.0,0.20596074]
[1728434570490,0.005,62055.0,62054.0,0.20596074]
[1728434570691,0.005,62055.0,62054.0,0.28657174]
[1728434573993,0.125,62055.0,62054.0,0.28657174]
[1728434574594,0.205609,62055.0,62054.0,0.28657174]
[1728434574796,0.205609,62055.0,62054.0,0.12286074]
[1728434574996,0.080613,62052.0,62050.0,0.09654658]
[1728434575196,0.190613,62052.0,62051.0,0.12286338]
[1728434576004,0.080613,62052.0,62051.0,0.12286338]
[1728434576395,0.080613,62052.0,62051.0,0.21940996]
[1728434577105,0.080613,62052.0,62051.0,0.22040996]
[1728434577501,0.080613,62052.0,62051.0,0.22140996]
[1728434578204,0.080613,62052.0,62051.0,0.12486338]
[1728434581902,0.080613,62052.0,62051.0,0.12486329]
[1728434583517,0.080613,62052.0,62051.0,0.20542345]
[1728434584004,0.080613,62052.0,62051.0,0.12486329]
[1728434584211,0.3608,62059.0,62051.0,0.12486329]
[1728434584407,0.12,62059.0,62058.0,0.270606]
[1728434584610,0.3608,62066.0,62065.0,0.080596]
[1728434584803,0.4308,62066.0,62065.0,0.080596]
[1728434585003,0.61869221,62066.0,62065.0,0.110596]
[1728434585407,0.61869221,62066.0,62049.0,0.441417]
[1728434585408,0.53809721,62066.0,62058.0,0.19]
[1728434585610,0.006,62059.0,62058.0,0.001]
[1728434585804,0.006,62059.0,62058.0,0.271606]
[1728434585805,0.0554801,62059.0,62058.0,0.271606]
[1728434586805,0.00241688,62076.0,62068.0,0.080593]
[1728434587011,0.20717744,62073.0,62072.0,0.080587]
[1728434587211,0.00241688,62076.0,62075.0,0.080583]
[1728434587411,0.05780038,62079.0,62072.0,0.22]
[1728434587712,0.05780038,62078.0,62077.0,0.19]
[1728434588014,0.05780038,62080.0,62077.0,0.19]
[1728434588215,0.05780038,62080.0,62076.0,0.080582]
[1728434588414,0.05780038,62079.0,62076.0,0.080582]
[1728434588618,0.05780038,62078.0,62072.0,0.22]
[1728434588805,0.13838238,62077.0,62072.0,0.03]
[1728434589311,0.05780038,62076.0,62072.0,0.03]
[1728434589507,0.05780038,62076.0,62075.0,0.270583]
[1728434589709,0.05980422,62080.0,62076.0,0.080582]
[1728434590008,0.16780422,62080.0,62079.0,0.270578]
[1728434591321,0.16780422,62080.0,62076.0,0.19]
[1728434591508,0.05780422,62079.0,62076.0,0.19]
[1728434591806,0.05780422,62079.0,62074.0,0.080584]
[1728434591807,0.01350583,62079.0,62074.0,0.080584]
[1728434592002,0.082577,62080.0,62075.0,0.080582]
[1728434592205,0.04946978,62079.0,62075.0,0.270582]
[1728434592402,0.04946978,62078.0,62075.0,0.270582]
[1728434592707,0.04946978,62077.0,62075.0,0.270582]
[1728434593020,0.001,62079.0,62075.0,0.270582]
[1728434593919,0.001,62079.0,62075.0,0.272582]
[1728434594414,0.12,62079.0,62076.0,0.080582]
[1728434594620,0.12,62079.0,62077.0,0.08058]
[1728434595417,0.121,62079.0,62077.0,0.08058]
[1728434595710,0.121,62079.0,62078.0,0.08058]
[1728434596719,0.001,62079.0,62078.0,0.08058]
[1728434596913,0.111,62079.0,62078.0,0.08058]
[1728434597212,0.001,62079.0,62078.0,0.08058]
[1728434597807,0.314862,62092.0,62076.0,0.3608]
[1728434598008,0.001,62079.0,62078.0,0.08058]
[1728434598811,0.0024165,62093.0,62090.0,0.080563]
[1728434599013,0.0024165,62093.0,62078.0,0.56382]
[1728434599014,0.014,62092.0,62086.0,0.3608]
[1728434599208,0.114,62092.0,62086.0,0.3608]
[1728434599813,0.114,62092.0,62091.0,0.19]
[1728434600017,0.014,62092.0,62091.0,0.5508]
[1728434600313,0.014,62092.0,62091.0,0.631363]
[1728434600703,0.0024165,62093.0,62091.0,0.5508]
[1728434600908,0.0024165,62093.0,62092.0,0.080561]
[1728434602515,0.0084165,62093.0,62092.0,0.081561]
[1728434604820,0.0084165,62093.0,62092.0,0.080561]
[1728434604821,0.0024165,62093.0,62092.0,0.080561]
[1728434605019,0.0024165,62093.0,62092.0,0.084561]
[1728434606116,0.0024165,62093.0,62092.0,0.090561]
[1728434607320,0.0024165,62093.0,62092.0,1.173721]
[1728434607519,0.45164,62103.0,62102.0,0.080548]
[1728434607716,0.55164,62103.0,62102.0,0.270548]
[1728434608220,0.79941602,62103.0,62102.0,0.19]
[1728434608422,0.79941602,62103.0,62102.0,0.270548]
[1728434608920,0.79941602,62103.0,62102.0,0.272548]
[1728434609111,0.7249749,62103.0,62102.0,0.15995342]